[Event "*** SCC Grand Prix: Titled Tuesday Blitz"]
[Site "Chess.com"]
[Date "2020.09.08"]
[Round "6"]
[White "GMaka"]
[Black "ChessicallyInclined"]
[Result "1-0"]
[WhiteElo "2381"]
[BlackElo "2546"]
[TimeControl "180+1"]
[EndTime "11:09:03 PDT"]
[Termination "GMaka won by checkmate"]

1. d4 {[%clk 0:03:00.9]} 1... Nf6 {[%clk 0:03:00.1]} 2. Bg5 {[%clk 0:03:00.1]}
2... e6 {[%clk 0:02:57.2]} 3. e4 {[%clk 0:02:59.3]} 3... h6 {[%clk 0:02:53.7]}
4. Bxf6 {[%clk 0:02:58.6]} 4... Qxf6 {[%clk 0:02:54]} 5. Nc3 {[%clk 0:02:59.1]}
5... d6 {[%clk 0:02:50.1]} 6. Qd2 {[%clk 0:02:59]} 6... Nd7 {[%clk 0:02:47.8]}
7. O-O-O {[%clk 0:02:44.7]} 7... c5 {[%clk 0:02:40.5]} 8. d5 {[%clk 0:02:41]}
8... e5 {[%clk 0:02:31.1]} 9. g3 {[%clk 0:02:25.9]} 9... h5 {[%clk 0:02:27.3]}
10. Bh3 {[%clk 0:02:18]} 10... g6 {[%clk 0:02:13.6]} 11. Kb1 {[%clk 0:02:16.7]}
11... Bh6 {[%clk 0:02:10.3]} 12. Qe2 {[%clk 0:02:15.8]} 12... a6 {[%clk
0:02:05.9]} 13. a4 {[%clk 0:02:15]} 13... O-O {[%clk 0:02:00.4]} 14. Nf3 {[%clk
0:02:10.4]} 14... Rd8 {[%clk 0:01:42.6]} 15. Nh4 {[%clk 0:02:07.9]} 15... Nf8
{[%clk 0:01:38.2]} 16. Bxc8 {[%clk 0:02:07.4]} 16... Raxc8 {[%clk 0:01:39.1]}
17. Rhf1 {[%clk 0:02:02.3]} 17... c4 {[%clk 0:01:22.3]} 18. Ng2 {[%clk
0:01:54.2]} 18... Qe7 {[%clk 0:01:18.7]} 19. f4 {[%clk 0:01:53]} 19... Bg7
{[%clk 0:01:16.1]} 20. f5 {[%clk 0:01:52.6]} 20... Qd7 {[%clk 0:01:07.6]} 21.
fxg6 {[%clk 0:01:24]} 21... fxg6 {[%clk 0:01:02.3]} 22. Rf2 {[%clk 0:01:18.4]}
22... b5 {[%clk 0:01:01.8]} 23. Rdf1 {[%clk 0:01:18.7]} 23... b4 {[%clk
0:00:53.9]} 24. Rf7 {[%clk 0:01:02]} 24... Qxf7 {[%clk 0:00:44.3]} 25. Rxf7
{[%clk 0:01:01.1]} 25... Kxf7 {[%clk 0:00:45.2]} 26. Nd1 {[%clk 0:00:58.6]}
26... Nh7 {[%clk 0:00:40.2]} 27. Nde3 {[%clk 0:00:53.5]} 27... b3 {[%clk
0:00:32.2]} 28. Nxc4 {[%clk 0:00:51.1]} 28... bxc2+ {[%clk 0:00:31.2]} 29. Kxc2
{[%clk 0:00:52]} 29... Nf6 {[%clk 0:00:28.5]} 30. b3 {[%clk 0:00:50.2]} 30...
Rc7 {[%clk 0:00:24.3]} 31. Nh4 {[%clk 0:00:47.1]} 31... Bf8 {[%clk 0:00:23.3]}
32. Nf3 {[%clk 0:00:44]} 32... Bh6 {[%clk 0:00:18.1]} 33. Kb2 {[%clk 0:00:42.7]}
33... Kg7 {[%clk 0:00:18.1]} 34. h4 {[%clk 0:00:41]} 34... Ne8 {[%clk
0:00:17.6]} 35. Ng5 {[%clk 0:00:40.6]} 35... Bxg5 {[%clk 0:00:17.8]} 36. hxg5
{[%clk 0:00:41.5]} 36... Rf7 {[%clk 0:00:16.9]} 37. Ka3 {[%clk 0:00:37.4]} 37...
Nc7 {[%clk 0:00:17.2]} 38. Qe3 {[%clk 0:00:33.3]} 38... Ne8 {[%clk 0:00:16.7]}
39. Qb6 {[%clk 0:00:32.4]} 39... Rdd7 {[%clk 0:00:14]} 40. Qxa6 {[%clk
0:00:31.8]} 40... Rf3 {[%clk 0:00:14.3]} 41. Qc8 {[%clk 0:00:31.1]} 41... Re7
{[%clk 0:00:13.5]} 42. Qd8 {[%clk 0:00:30.9]} 42... Kf7 {[%clk 0:00:13.6]} 43.
Nxd6+ {[%clk 0:00:31.3]} 43... Nxd6 {[%clk 0:00:14.4]} 44. Qxd6 {[%clk
0:00:31.6]} 44... Rxg3 {[%clk 0:00:13.7]} 45. Qf6+ {[%clk 0:00:31.1]} 45... Ke8
{[%clk 0:00:14.2]} 46. Qxg6+ {[%clk 0:00:31.5]} 46... Kd7 {[%clk 0:00:15.1]} 47.
Qf5+ {[%clk 0:00:31.3]} 47... Kd6 {[%clk 0:00:14.7]} 48. Qf6+ {[%clk 0:00:31.4]}
48... Kd7 {[%clk 0:00:14.8]} 49. d6 {[%clk 0:00:31.4]} 49... Re6 {[%clk
0:00:14.3]} 50. Qf5 {[%clk 0:00:30.6]} 50... Kxd6 {[%clk 0:00:13.4]} 51. a5
{[%clk 0:00:31]} 51... Rg1 {[%clk 0:00:11.7]} 52. Kb4 {[%clk 0:00:29.8]} 52...
Ra1 {[%clk 0:00:11.4]} 53. Kb5 {[%clk 0:00:29.5]} 53... h4 {[%clk 0:00:11.7]}
54. g6 {[%clk 0:00:28.5]} 54... Rg1 {[%clk 0:00:10.9]} 55. Qf8+ {[%clk
0:00:28.1]} 55... Kd7 {[%clk 0:00:10.7]} 56. Qf7+ {[%clk 0:00:27.8]} 56... Re7
{[%clk 0:00:10.9]} 57. Qf5+ {[%clk 0:00:26.9]} 57... Re6 {[%clk 0:00:10.9]} 58.
Qf7+ {[%clk 0:00:23.7]} 58... Kd6 {[%clk 0:00:11.1]} 59. Qf8+ {[%clk 0:00:23]}
59... Kd7 {[%clk 0:00:11.3]} 60. Qh8 {[%clk 0:00:22.9]} 60... Rexg6 {[%clk
0:00:11.6]} 61. Qxh4 {[%clk 0:00:22.8]} 61... Rg7 {[%clk 0:00:11.2]} 62. Qh3+
{[%clk 0:00:22.3]} 62... Kd6 {[%clk 0:00:11.1]} 63. b4 {[%clk 0:00:21.7]} 63...
R1g6 {[%clk 0:00:10.8]} 64. Qd3+ {[%clk 0:00:20.9]} 64... Kc7 {[%clk 0:00:11.3]}
65. Qc4+ {[%clk 0:00:20.7]} 65... Kb7 {[%clk 0:00:11.5]} 66. Qd5+ {[%clk
0:00:20.6]} 66... Ka7 {[%clk 0:00:12]} 67. Qc5+ {[%clk 0:00:21]} 67... Kb7
{[%clk 0:00:12]} 68. Qxe5 {[%clk 0:00:21.5]} 68... Rc7 {[%clk 0:00:11.2]} 69.
Qd5+ {[%clk 0:00:21.3]} 69... Rgc6 {[%clk 0:00:11.5]} 70. e5 {[%clk 0:00:21.2]}
70... Rc8 {[%clk 0:00:11.7]} 71. a6+ {[%clk 0:00:21.1]} 71... Ka7 {[%clk
0:00:11.8]} 72. Ka5 {[%clk 0:00:20.6]} 72... Rc1 {[%clk 0:00:11.2]} 73. Qd4+
{[%clk 0:00:20.8]} 73... Ka8 {[%clk 0:00:11.2]} 74. b5 {[%clk 0:00:21.1]} 74...
Ra1+ {[%clk 0:00:11.1]} 75. Qxa1 {[%clk 0:00:20.5]} 75... Rb8 {[%clk 0:00:10.5]}
76. Qh1+ {[%clk 0:00:20.1]} 76... Ka7 {[%clk 0:00:11]} 77. Qh7+ {[%clk
0:00:20.8]} 77... Ka8 {[%clk 0:00:11.4]} 78. b6 {[%clk 0:00:21.5]} 78... Rd8
{[%clk 0:00:10.7]} 79. Qb7# {[%clk 0:00:21.4]} 1-0

[Event "*** SCC Grand Prix: Titled Tuesday Blitz"]
[Site "Chess.com"]
[Date "2020.09.08"]
[Round "6"]
[White "GM_Levan_Pantsulaia"]
[Black "RobertoJBM"]
[Result "1/2-1/2"]
[WhiteElo "2853"]
[BlackElo "2684"]
[TimeControl "180+1"]
[EndTime "11:09:08 PDT"]
[Termination "Game drawn by repetition"]

1. Nf3 {[%clk 0:03:00.9]} 1... d5 {[%clk 0:03:00.1]} 2. g3 {[%clk 0:03:01.3]}
2... c6 {[%clk 0:02:57.7]} 3. Bg2 {[%clk 0:03:01.7]} 3... Bg4 {[%clk 0:02:57.9]}
4. O-O {[%clk 0:02:57.4]} 4... Nd7 {[%clk 0:02:57.9]} 5. c4 {[%clk 0:02:57.6]}
5... e6 {[%clk 0:02:57.3]} 6. cxd5 {[%clk 0:02:57.7]} 6... exd5 {[%clk
0:02:57.2]} 7. h3 {[%clk 0:02:57.1]} 7... Bh5 {[%clk 0:02:56.9]} 8. d3 {[%clk
0:02:57.2]} 8... Ngf6 {[%clk 0:02:56.4]} 9. Nc3 {[%clk 0:02:54.4]} 9... Nc5
{[%clk 0:02:54.4]} 10. b4 {[%clk 0:02:49.8]} 10... Ne6 {[%clk 0:02:54.3]} 11.
Rb1 {[%clk 0:02:42.6]} 11... Be7 {[%clk 0:02:51.3]} 12. Nh4 {[%clk 0:02:24.7]}
12... Bg6 {[%clk 0:02:46.1]} 13. f4 {[%clk 0:02:08.6]} 13... Nh5 {[%clk
0:02:36.1]} 14. f5 {[%clk 0:01:40.8]} 14... Nxg3 {[%clk 0:02:36]} 15. Nxg6
{[%clk 0:01:39]} 15... hxg6 {[%clk 0:02:32.6]} 16. fxe6 {[%clk 0:01:38.5]} 16...
f5 {[%clk 0:02:31.2]} 17. Rf3 {[%clk 0:01:30.8]} 17... Bd6 {[%clk 0:02:27.7]}
18. Qe1 {[%clk 0:01:24.1]} 18... Qh4 {[%clk 0:02:23.7]} 19. e4 {[%clk
0:01:11.5]} 19... fxe4 {[%clk 0:01:55.5]} 20. dxe4 {[%clk 0:01:12.3]} 20... d4
{[%clk 0:01:55.9]} 21. Ne2 {[%clk 0:01:09.2]} 21... Nxe4 {[%clk 0:01:24]} 22.
Qxh4 {[%clk 0:01:04.6]} 22... Rxh4 {[%clk 0:01:24.9]} 23. Bf4 {[%clk 0:00:59.4]}
23... Bxf4 {[%clk 0:01:14.7]} 24. Rxf4 {[%clk 0:00:56.1]} 24... Rxf4 {[%clk
0:01:13.6]} 25. Nxf4 {[%clk 0:00:57]} 25... Nc3 {[%clk 0:01:14.3]} 26. Rb2
{[%clk 0:00:24.5]} 26... Ke7 {[%clk 0:01:13]} 27. Nxg6+ {[%clk 0:00:17.5]} 27...
Kxe6 {[%clk 0:01:12.2]} 28. Nf4+ {[%clk 0:00:18.1]} 28... Kd6 {[%clk 0:01:06.9]}
29. Nd3 {[%clk 0:00:18.6]} 29... Re8 {[%clk 0:01:05.7]} 30. a3 {[%clk
0:00:16.5]} 30... b6 {[%clk 0:01:04.1]} 31. Rd2 {[%clk 0:00:16.2]} 31... Nb1
{[%clk 0:01:01.8]} 32. Rd1 {[%clk 0:00:13.4]} 32... Nxa3 {[%clk 0:01:00.6]} 33.
Ra1 {[%clk 0:00:12.9]} 33... Nb5 {[%clk 0:01:00.4]} 34. Kf2 {[%clk 0:00:12]}
34... Re3 {[%clk 0:00:59]} 35. Bf1 {[%clk 0:00:10.8]} 35... g5 {[%clk
0:00:47.6]} 36. Ra2 {[%clk 0:00:09.9]} 36... Nc3 {[%clk 0:00:44.5]} 37. Rxa7
{[%clk 0:00:09.6]} 37... Ne4+ {[%clk 0:00:44.8]} 38. Kg1 {[%clk 0:00:09.6]}
38... c5 {[%clk 0:00:45.6]} 39. bxc5+ {[%clk 0:00:09.2]} 39... bxc5 {[%clk
0:00:46.5]} 40. Ra6+ {[%clk 0:00:09.4]} 40... Kd5 {[%clk 0:00:47]} 41. Ra5
{[%clk 0:00:09.2]} 41... Kd6 {[%clk 0:00:39.9]} 42. Nb2 {[%clk 0:00:09.2]} 42...
Nd2 {[%clk 0:00:39.1]} 43. Nc4+ {[%clk 0:00:08.3]} 43... Nxc4 {[%clk 0:00:39.4]}
44. Bxc4 {[%clk 0:00:09.2]} 44... Rxh3 {[%clk 0:00:38.2]} 45. Kf2 {[%clk
0:00:09.6]} 45... Rc3 {[%clk 0:00:37.8]} 46. Ra4 {[%clk 0:00:09.5]} 46... Ke5
{[%clk 0:00:36.8]} 47. Ke2 {[%clk 0:00:09.1]} 47... Ke4 {[%clk 0:00:36]} 48. Ba6
{[%clk 0:00:07.9]} 48... Rc2+ {[%clk 0:00:34.5]} 49. Kd1 {[%clk 0:00:08.2]}
49... Rc3 {[%clk 0:00:34.1]} 50. Bb7+ {[%clk 0:00:07.4]} 50... Ke3 {[%clk
0:00:33.4]} 51. Ra8 {[%clk 0:00:05.8]} 51... g4 {[%clk 0:00:30.7]} 52. Re8+
{[%clk 0:00:05.6]} 52... Kf2 {[%clk 0:00:31.2]} 53. Rf8+ {[%clk 0:00:06.1]}
53... Kg1 {[%clk 0:00:27.1]} 54. Kd2 {[%clk 0:00:06.4]} 54... g3 {[%clk
0:00:28]} 55. Bd5 {[%clk 0:00:05.9]} 55... Re3 {[%clk 0:00:24.6]} 56. Ra8 {[%clk
0:00:05.1]} 56... Kf2 {[%clk 0:00:15.6]} 57. Rf8+ {[%clk 0:00:04.4]} 57... Kg1
{[%clk 0:00:16.2]} 58. Rf5 {[%clk 0:00:05.1]} 58... Kh2 {[%clk 0:00:12.1]} 59.
Rh5+ {[%clk 0:00:04.9]} 59... Kg1 {[%clk 0:00:12.7]} 60. Rf5 {[%clk 0:00:03.5]}
60... Kh2 {[%clk 0:00:12.9]} 61. Rh5+ {[%clk 0:00:03.6]} 61... Kg1 {[%clk
0:00:13.3]} 62. Rg5 {[%clk 0:00:04.1]} 62... Kh2 {[%clk 0:00:05.5]} 63. Rh5+
{[%clk 0:00:04.3]} 1/2-1/2

[Event "*** SCC Grand Prix: Titled Tuesday Blitz"]
[Site "Chess.com"]
[Date "2020.09.08"]
[Round "6"]
[White "willc-h99"]
[Black "floplover"]
[Result "1-0"]
[WhiteElo "2437"]
[BlackElo "2314"]
[TimeControl "180+1"]
[EndTime "11:09:10 PDT"]
[Termination "willc-h99 won by resignation"]

1. d4 {[%clk 0:03:00.9]} 1... d5 {[%clk 0:02:58.5]} 2. Nf3 {[%clk 0:03:01.4]}
2... e6 {[%clk 0:02:58.5]} 3. e3 {[%clk 0:03:01.7]} 3... Nf6 {[%clk 0:02:57.8]}
4. Bd3 {[%clk 0:03:02.2]} 4... Bd6 {[%clk 0:02:56.3]} 5. O-O {[%clk 0:03:02.7]}
5... O-O {[%clk 0:02:55.8]} 6. b3 {[%clk 0:03:03.2]} 6... c6 {[%clk 0:02:54.3]}
7. Bb2 {[%clk 0:03:03.8]} 7... Nbd7 {[%clk 0:02:54.5]} 8. Ne5 {[%clk 0:02:59.2]}
8... a5 {[%clk 0:02:50.7]} 9. a3 {[%clk 0:02:54.8]} 9... Qc7 {[%clk 0:02:42.5]}
10. f4 {[%clk 0:02:53.6]} 10... b6 {[%clk 0:02:40.9]} 11. Nd2 {[%clk 0:02:49.3]}
11... Ba6 {[%clk 0:02:40.4]} 12. Bxa6 {[%clk 0:02:49.5]} 12... Rxa6 {[%clk
0:02:40.2]} 13. c4 {[%clk 0:02:47]} 13... Ne8 {[%clk 0:02:18.3]} 14. Rc1 {[%clk
0:02:44.6]} 14... f6 {[%clk 0:02:15]} 15. Nd3 {[%clk 0:02:45.1]} 15... a4 {[%clk
0:02:02.6]} 16. b4 {[%clk 0:02:43.9]} 16... Qb7 {[%clk 0:01:47.3]} 17. e4 {[%clk
0:02:24.9]} 17... b5 {[%clk 0:01:32.2]} 18. cxd5 {[%clk 0:02:15.3]} 18... cxd5
{[%clk 0:01:29.8]} 19. e5 {[%clk 0:02:14.9]} 19... Be7 {[%clk 0:01:24.2]} 20.
Nc5 {[%clk 0:02:09.3]} 20... Bxc5 {[%clk 0:01:20.5]} 21. dxc5 {[%clk 0:02:07.4]}
21... f5 {[%clk 0:01:04.4]} 22. Nf3 {[%clk 0:02:01.7]} 22... Nb8 {[%clk
0:01:03.7]} 23. Nd4 {[%clk 0:02:01.1]} 23... Nc7 {[%clk 0:01:01.8]} 24. g4
{[%clk 0:01:25.2]} 24... Nc6 {[%clk 0:01:01.9]} 25. g5 {[%clk 0:00:58.9]} 25...
Nxd4 {[%clk 0:01:01.1]} 26. Bxd4 {[%clk 0:00:59.8]} 26... Rc6 {[%clk 0:00:55]}
27. h4 {[%clk 0:00:59.4]} 27... Na6 {[%clk 0:00:54.2]} 28. Qe2 {[%clk
0:00:57.7]} 28... Nb8 {[%clk 0:00:51.4]} 29. Rf3 {[%clk 0:00:55.6]} 29... Rcc8
{[%clk 0:00:50.2]} 30. Rfc3 {[%clk 0:00:55.9]} 30... Nc6 {[%clk 0:00:50.7]} 31.
Qd3 {[%clk 0:00:54.7]} 31... Rb8 {[%clk 0:00:46.8]} 32. Bf2 {[%clk 0:00:48.2]}
32... Qf7 {[%clk 0:00:47.1]} 33. Qf3 {[%clk 0:00:48.3]} 33... Rfd8 {[%clk
0:00:46.1]} 34. Rd3 {[%clk 0:00:47.6]} 34... Rbc8 {[%clk 0:00:39.4]} 35. Rcd1
{[%clk 0:00:44.4]} 35... Rc7 {[%clk 0:00:37.6]} 36. Kf1 {[%clk 0:00:43.7]} 36...
Rcc8 {[%clk 0:00:37.8]} 37. Ke2 {[%clk 0:00:43.4]} 37... Rc7 {[%clk 0:00:38.1]}
38. h5 {[%clk 0:00:43.7]} 38... Qe7 {[%clk 0:00:27.8]} 39. Bh4 {[%clk
0:00:35.5]} 39... g6 {[%clk 0:00:20.4]} 40. Bf2 {[%clk 0:00:33.1]} 40... Qg7
{[%clk 0:00:18.3]} 41. Rh1 {[%clk 0:00:33.2]} 41... Kf7 {[%clk 0:00:17.6]} 42.
Qg2 {[%clk 0:00:33]} 42... Rh8 {[%clk 0:00:17.1]} 43. Rdh3 {[%clk 0:00:33.6]}
43... Rcc8 {[%clk 0:00:17.2]} 44. Qf3 {[%clk 0:00:32.3]} 44... Ke7 {[%clk
0:00:15.8]} 45. Qd3 {[%clk 0:00:32.2]} 45... Rb8 {[%clk 0:00:15.5]} 46. Rh4
{[%clk 0:00:31.5]} 46... Kd7 {[%clk 0:00:14.4]} 47. Qh3 {[%clk 0:00:26.2]} 47...
Kc7 {[%clk 0:00:13.1]} 48. hxg6 {[%clk 0:00:26.1]} 48... Qxg6 {[%clk 0:00:13.2]}
49. Rxh7+ {[%clk 0:00:18.4]} 49... Rxh7 {[%clk 0:00:11.9]} 50. Qxh7+ {[%clk
0:00:19.3]} 50... Qxh7 {[%clk 0:00:12.8]} 51. Rxh7+ {[%clk 0:00:20.2]} 51... Kc8
{[%clk 0:00:12.3]} 52. Rh8+ {[%clk 0:00:19.3]} 52... Kd7 {[%clk 0:00:12.1]} 53.
Rxb8 {[%clk 0:00:08.9]} 53... Nxb8 {[%clk 0:00:13]} 54. Kf3 {[%clk 0:00:09.3]}
54... Ke7 {[%clk 0:00:13.3]} 55. g6 {[%clk 0:00:08.9]} 55... Kf8 {[%clk
0:00:12.9]} 56. Bh4 {[%clk 0:00:09.5]} 56... Kg7 {[%clk 0:00:12.9]} 57. Be7
{[%clk 0:00:03.8]} 57... Kxg6 {[%clk 0:00:12.5]} 58. Bd6 {[%clk 0:00:04.7]}
58... Nc6 {[%clk 0:00:12.2]} 59. Kg3 {[%clk 0:00:05.6]} 59... Kf7 {[%clk
0:00:10.7]} 60. Kh4 {[%clk 0:00:05.7]} 60... Nxb4 {[%clk 0:00:10.5]} 61. axb4
{[%clk 0:00:03.1]} 61... a3 {[%clk 0:00:10.5]} 62. c6 {[%clk 0:00:03.1]} 62...
Ke8 {[%clk 0:00:10.7]} 63. c7 {[%clk 0:00:02.5]} 63... Kd7 {[%clk 0:00:10.8]}
64. Bc5 {[%clk 0:00:03.3]} 64... Kxc7 {[%clk 0:00:09.1]} 65. Bd4 {[%clk
0:00:04.2]} 65... Kd7 {[%clk 0:00:08.8]} 66. Kg5 {[%clk 0:00:04.9]} 66... Ke7
{[%clk 0:00:09]} 67. Kg6 {[%clk 0:00:05.6]} 67... Kd7 {[%clk 0:00:09.1]} 68. Kf7
{[%clk 0:00:05.8]} 68... a2 {[%clk 0:00:10]} 69. Kf6 {[%clk 0:00:05.6]} 69...
Kc7 {[%clk 0:00:08.7]} 70. Kxe6 {[%clk 0:00:06]} 70... Kc6 {[%clk 0:00:09]} 71.
Kxf5 {[%clk 0:00:06.1]} 71... Kd7 {[%clk 0:00:09.6]} 72. e6+ {[%clk 0:00:04.9]}
1-0

[Event "*** SCC Grand Prix: Titled Tuesday Blitz"]
[Site "Chess.com"]
[Date "2020.09.08"]
[Round "6"]
[White "Witik"]
[Black "ketster"]
[Result "1-0"]
[WhiteElo "2698"]
[BlackElo "2450"]
[TimeControl "180+1"]
[EndTime "11:09:17 PDT"]
[Termination "Witik won by checkmate"]

1. e4 {[%clk 0:03:00.9]} 1... e5 {[%clk 0:02:59.7]} 2. f4 {[%clk 0:03:00.7]}
2... d5 {[%clk 0:02:57.8]} 3. exd5 {[%clk 0:03:00.8]} 3... exf4 {[%clk
0:02:55.5]} 4. Nf3 {[%clk 0:03:00.1]} 4... Bd6 {[%clk 0:02:54.3]} 5. d4 {[%clk
0:02:58.1]} 5... Nf6 {[%clk 0:02:52]} 6. Bb5+ {[%clk 0:02:39.4]} 6... c6 {[%clk
0:02:19.3]} 7. dxc6 {[%clk 0:02:38.9]} 7... bxc6 {[%clk 0:02:16.9]} 8. Bc4
{[%clk 0:02:29.4]} 8... O-O {[%clk 0:02:13.7]} 9. O-O {[%clk 0:02:29.1]} 9...
Bg4 {[%clk 0:02:13.2]} 10. Nc3 {[%clk 0:02:22.7]} 10... Nbd7 {[%clk 0:02:12.9]}
11. Qd3 {[%clk 0:02:20.1]} 11... Nb6 {[%clk 0:02:06.3]} 12. Bb3 {[%clk
0:02:19.6]} 12... Qc7 {[%clk 0:01:46.3]} 13. Ne5 {[%clk 0:02:06.6]} 13... Bxe5
{[%clk 0:01:41.6]} 14. dxe5 {[%clk 0:02:06.4]} 14... Qxe5 {[%clk 0:01:42.5]} 15.
Bxf4 {[%clk 0:02:02.1]} 15... Qh5 {[%clk 0:01:41.4]} 16. Qg3 {[%clk 0:01:56.5]}
16... Qg6 {[%clk 0:01:35.3]} 17. Bd6 {[%clk 0:01:47.4]} 17... Rfe8 {[%clk
0:01:30]} 18. Rf4 {[%clk 0:01:04.8]} 18... Be6 {[%clk 0:01:28.7]} 19. Qxg6
{[%clk 0:01:01.4]} 19... hxg6 {[%clk 0:01:27.5]} 20. Bc5 {[%clk 0:00:57.8]}
20... Nbd5 {[%clk 0:01:24.8]} 21. Nxd5 {[%clk 0:00:57.3]} 21... Bxd5 {[%clk
0:01:23.8]} 22. c4 {[%clk 0:00:54.5]} 22... Be6 {[%clk 0:01:12.2]} 23. Rd4
{[%clk 0:00:54.4]} 23... Nd7 {[%clk 0:01:01.1]} 24. Bd6 {[%clk 0:00:51.2]} 24...
Nb6 {[%clk 0:00:55.3]} 25. Rad1 {[%clk 0:00:46]} 25... a5 {[%clk 0:00:54.1]} 26.
Bc5 {[%clk 0:00:44.5]} 26... Rab8 {[%clk 0:00:44.3]} 27. Rc1 {[%clk 0:00:30.8]}
27... a4 {[%clk 0:00:32]} 28. Bd1 {[%clk 0:00:30.8]} 28... Rb7 {[%clk
0:00:27.9]} 29. Bf3 {[%clk 0:00:30.3]} 29... Rc8 {[%clk 0:00:27]} 30. Rc3 {[%clk
0:00:19.8]} 30... Nd7 {[%clk 0:00:26.9]} 31. Ba3 {[%clk 0:00:19.9]} 31... Ne5
{[%clk 0:00:24.5]} 32. Be2 {[%clk 0:00:20]} 32... Rcb8 {[%clk 0:00:16.1]} 33. h3
{[%clk 0:00:19.8]} 33... Rc8 {[%clk 0:00:14.7]} 34. Bf1 {[%clk 0:00:16.9]} 34...
f6 {[%clk 0:00:12]} 35. Be2 {[%clk 0:00:16.6]} 35... Kf7 {[%clk 0:00:10.9]} 36.
b3 {[%clk 0:00:14.7]} 36... axb3 {[%clk 0:00:10.3]} 37. axb3 {[%clk 0:00:15.6]}
37... Ra8 {[%clk 0:00:10.3]} 38. Bd6 {[%clk 0:00:14.9]} 38... Ra1+ {[%clk
0:00:02.6]} 39. Kf2 {[%clk 0:00:15]} 39... Ra2 {[%clk 0:00:01.6]} 40. Ke3 {[%clk
0:00:15.5]} 40... Nd7 {[%clk 0:00:01.5]} 41. b4 {[%clk 0:00:10.3]} 41... c5
{[%clk 0:00:01.9]} 42. bxc5 {[%clk 0:00:10.3]} 42... Ne5 {[%clk 0:00:02.3]} 43.
Bxe5 {[%clk 0:00:07]} 43... fxe5 {[%clk 0:00:03.2]} 44. Rd6 {[%clk 0:00:07.7]}
44... Rc7 {[%clk 0:00:03.6]} 45. c6 {[%clk 0:00:06.7]} 45... Ra6 {[%clk
0:00:03.7]} 46. Bf3 {[%clk 0:00:06.9]} 46... Ke7 {[%clk 0:00:04.2]} 47. c5
{[%clk 0:00:06.6]} 47... Ra5 {[%clk 0:00:03.7]} 48. Be4 {[%clk 0:00:06.1]} 48...
Ra4 {[%clk 0:00:04]} 49. Bxg6 {[%clk 0:00:05.5]} 49... Ra2 {[%clk 0:00:04.5]}
50. Be4 {[%clk 0:00:05.4]} 50... Ra5 {[%clk 0:00:05.2]} 51. g4 {[%clk
0:00:04.8]} 51... Ra2 {[%clk 0:00:05.4]} 52. Bf5 {[%clk 0:00:04.5]} 52... Rh2
{[%clk 0:00:05.5]} 53. Rxe6+ {[%clk 0:00:04.5]} 53... Kf7 {[%clk 0:00:05.8]} 54.
Ke4 {[%clk 0:00:04.9]} 54... Re2+ {[%clk 0:00:05.8]} 55. Kd5 {[%clk 0:00:04.9]}
55... Rd2+ {[%clk 0:00:05.3]} 56. Kxe5 {[%clk 0:00:05.4]} 56... Re2+ {[%clk
0:00:05.7]} 57. Kd6 {[%clk 0:00:05.7]} 57... Rxe6+ {[%clk 0:00:04]} 58. Bxe6+
{[%clk 0:00:05.9]} 58... Kf6 {[%clk 0:00:04.9]} 59. Kxc7 {[%clk 0:00:06]} 59...
g6 {[%clk 0:00:05.8]} 60. Kd8 {[%clk 0:00:06.5]} 60... Kg5 {[%clk 0:00:06.7]}
61. c7 {[%clk 0:00:07.4]} 61... Kh4 {[%clk 0:00:07.6]} 62. c8=Q {[%clk 0:00:08]}
62... g5 {[%clk 0:00:07.2]} 63. Rc1 {[%clk 0:00:06.2]} 63... Kg3 {[%clk
0:00:06.9]} 64. Qc7+ {[%clk 0:00:06.3]} 64... Kg2 {[%clk 0:00:07.4]} 65. Qe5
{[%clk 0:00:05.9]} 65... Kf2 {[%clk 0:00:07]} 66. Rc2+ {[%clk 0:00:06.2]} 66...
Kf1 {[%clk 0:00:06.1]} 67. Qe2+ {[%clk 0:00:05.8]} 67... Kg1 {[%clk 0:00:06.2]}
68. Qg2# {[%clk 0:00:06.3]} 1-0